bitfinex-derivatives/quotes_BTCF0:USTF0_20241021
["timestamp","ask_amount","ask_price","bid_price","bid_amount"]
[1729501810193,0.001,68430.0,68429.0,0.18479311]
[1729501810588,0.001,68430.0,68429.0,0.31404197]
[1729501810790,0.3608,68432.0,68431.0,0.073091]
[1729501810999,0.3608,68432.0,68431.0,0.26951154]
[1729501811999,0.3618,68432.0,68431.0,0.27451154]
[1729501813294,0.3618,68432.0,68431.0,0.18679011]
[1729501813492,0.3618,68432.0,68431.0,0.19179011]
[1729501813693,0.3628,68432.0,68431.0,0.20079011]
[1729501814189,0.002,68432.0,68431.0,0.54957192]
[1729501814596,0.073081,68441.0,68440.0,0.073082]
[1729501814796,0.073081,68441.0,68440.0,0.18178111]
[1729501815492,0.073081,68441.0,68440.0,0.073082]
[1729501817303,0.3608,68445.0,68443.0,0.073078]
[1729501817304,0.433877,68445.0,68443.0,0.073078]
[1729501817495,0.3608,68445.0,68444.0,0.073077]
[1729501818503,0.3608,68445.0,68444.0,0.1314853]
[1729501818808,0.001,68445.0,68444.0,0.078077]
[1729501819103,0.001,68445.0,68444.0,0.18577753]
[1729501819304,0.001,68445.0,68444.0,0.40621867]
[1729501819505,0.00219215,68451.0,68444.0,0.40621867]
[1729501819506,0.00219215,68451.0,68450.0,0.073071]
[1729501819807,0.00219215,68451.0,68450.0,0.29351214]
[1729501821203,0.00319215,68451.0,68450.0,0.29351214]
[1729501821409,0.3608,68457.0,68450.0,0.351817]
[1729501821600,0.001,68451.0,68450.0,0.29351214]
[1729501822608,0.03578597,68451.0,68450.0,0.25058923]
[1729501823910,0.08064125,68451.0,68450.0,0.25058923]
[1729501824605,0.08164125,68451.0,68450.0,0.24958923]
[1729501824801,0.08164035,68451.0,68450.0,0.24958923]
[1729501827699,0.08064035,68451.0,68450.0,0.24958923]
[1729501827900,0.08164035,68451.0,68450.0,0.25958923]
[1729501828100,0.05241304,68459.0,68450.0,0.25958923]
[1729501828305,0.34422,68469.0,68457.0,0.073064]
[1729501828306,0.08064049,68458.0,68457.0,0.073064]
[1729501828505,0.03578563,68458.0,68457.0,0.073064]
[1729501828712,0.03578563,68458.0,68457.0,0.29347468]
[1729501829612,0.003,68459.0,68458.0,0.073063]
[1729501829917,0.003,68459.0,68458.0,0.3923691]
[1729501831316,0.1162,68474.0,68461.0,0.073059]
[1729501831508,0.073049,68471.0,68462.0,0.3608]
[1729501831708,0.073057,68463.0,68462.0,0.57915275]
[1729501832323,0.073057,68463.0,68462.0,0.65221075]
[1729501832518,0.1162,68474.0,68462.0,0.57915275]
[1729501832808,0.073054,68466.0,68465.0,0.073055]
[1729501834715,0.080057,68463.0,68462.0,0.3628]
[1729501834916,0.080057,68463.0,68462.0,0.435858]
[1729501835117,0.080057,68463.0,68462.0,0.29495461]
[1729501835419,0.080057,68463.0,68462.0,0.001]
[1729501835714,0.073061,68459.0,68458.0,0.073062]
[1729501836109,0.073061,68459.0,68458.0,0.29220343]
[1729501837615,0.15369394,68459.0,68458.0,0.01437149]
[1729501838304,0.15969394,68459.0,68458.0,0.01437149]
[1729501838509,0.15969394,68459.0,68458.0,0.08743349]
[1729501839220,0.15969375,68459.0,68458.0,0.08743349]
[1729501839718,0.2121014,68459.0,68458.0,0.08743349]
[1729501839907,0.15969375,68459.0,68458.0,0.08743349]
[1729501840112,0.2121014,68459.0,68458.0,0.08743349]
[1729501841415,0.2121014,68459.0,68454.0,0.35023969]
[1729501841607,0.18894284,68457.0,68456.0,0.073065]
[1729501841811,0.32198324,68457.0,68456.0,0.073065]
[1729501842009,0.39504724,68457.0,68456.0,0.29319388]
[1729501842215,0.32198324,68457.0,68454.0,0.37696665]
[1729501842518,0.18894284,68455.0,68454.0,0.37696665]
[1729501842815,0.18894284,68455.0,68454.0,0.38596665]
[1729501842816,0.32198324,68455.0,68454.0,0.38596665]
[1729501843014,0.32198324,68455.0,68454.0,0.45903865]
[1729501843813,0.1330404,68455.0,68454.0,0.45903865]
[1729501844612,0.18965213,68457.0,68456.0,0.073071]
[1729501844921,0.074068,68459.0,68456.0,0.073071]
[1729501845112,0.001,68457.0,68456.0,0.073071]
[1729501846013,0.073069,68458.0,68457.0,0.07307]
[1729501848420,0.073069,68458.0,68456.0,0.006]
[1729501848421,0.073064,68458.0,68456.0,0.085066]
[1729501848715,0.1136,68462.0,68456.0,0.012]
[1729501848913,0.073061,68460.0,68458.0,0.073062]
[1729501849110,0.1136,68462.0,68458.0,0.073062]
[1729501849310,0.073061,68459.0,68458.0,0.073062]
[1729501850327,0.074063,68458.0,68456.0,0.05770866]
[1729501850521,0.073064,68457.0,68456.0,0.05770866]
[1729501851818,0.073064,68457.0,68456.0,0.014]
[1729501852015,0.073064,68457.0,68456.0,0.05270866]
[1729501852511,0.073064,68457.0,68456.0,0.11677366]
[1729501852843,0.073064,68457.0,68456.0,0.073065]
[1729501853517,0.075064,68457.0,68456.0,0.093065]
[1729501855128,0.075064,68457.0,68456.0,0.02]
[1729501855520,0.075064,68457.0,68456.0,0.07843077]
[1729501856323,0.074064,68457.0,68456.0,0.011]
[1729501856523,0.073064,68457.0,68456.0,0.06743077]
[1729501857531,0.073064,68457.0,68456.0,0.06043077]
[1729501858432,0.073064,68457.0,68456.0,0.002]
[1729501859731,0.15570426,68457.0,68456.0,0.094065]
[1729501860431,0.15570426,68457.0,68456.0,0.091065]
[1729501860730,0.15570426,68457.0,68456.0,0.088065]
[1729501860932,0.15570426,68457.0,68456.0,0.015]
[1729501861327,0.08264026,68457.0,68456.0,0.009]
[1729501861523,0.08264026,68457.0,68436.0,0.00219139]
[1729501861524,0.073085,68437.0,68436.0,0.00219139]
[1729501861826,0.15372526,68437.0,68436.0,0.00219139]
[1729501862023,0.1537459,68437.0,68436.0,0.00219139]
[1729501864137,0.1547459,68437.0,68436.0,0.01319139]
[1729501864527,0.1557459,68437.0,68436.0,0.01319139]
[1729501865038,0.1547459,68437.0,68436.0,0.00219139]
[1729501865236,0.1547459,68437.0,68436.0,0.00619139]
[1729501865431,0.1557459,68437.0,68436.0,0.00619139]
[1729501866629,0.11995438,68437.0,68436.0,0.00619139]
[1729501866831,0.15575159,68437.0,68436.0,0.00619139]
[1729501867031,0.15575159,68437.0,68436.0,0.01319139]
[1729501867534,0.15575159,68437.0,68436.0,0.01053103]
[1729501867535,0.51655159,68437.0,68436.0,0.01053103]
[1729501867842,0.536845,68437.0,68436.0,0.01053103]
[1729501868532,0.46276,68437.0,68426.0,0.073097]
[1729501868742,0.536845,68437.0,68436.0,0.011]
[1729501869036,0.897645,68437.0,68436.0,0.011]
[1729501870540,0.073096,68428.0,68424.0,0.02643695]
[1729501870725,0.073096,68428.0,68422.0,0.073101]
[1729501870726,0.3608,68425.0,68422.0,0.073101]
[1729501870931,0.3608,68425.0,68422.0,0.02595772]
[1729501871132,0.073103,68421.0,68417.0,0.073106]
[1729501871329,0.433904,68419.0,68417.0,0.09921117]
[1729501872139,0.433904,68419.0,68417.0,0.02610517]
[1729501872438,0.433904,68419.0,68415.0,0.29209441]
[1729501873034,0.433904,68419.0,68415.0,0.3179863]
[1729501873245,0.433904,68419.0,68415.0,0.3910943]
[1729501873942,0.434904,68419.0,68417.0,0.01]
[1729501874738,0.434904,68419.0,68415.0,0.3910943]
[1729501874739,0.3628,68419.0,68415.0,0.3279863]
[1729501874941,0.073107,68416.0,68415.0,0.3279863]
[1729501875637,0.073107,68416.0,68415.0,0.3179863]
[1729501877743,0.074107,68416.0,68415.0,0.3269863]
[1729501878245,0.075107,68416.0,68415.0,0.3269863]
[1729501878640,0.075107,68416.0,68415.0,0.3259863]
[1729501880252,0.002,68416.0,68415.0,0.3254482]
[1729501880541,0.3608,68419.0,68418.0,0.073105]
[1729501881147,0.3608,68425.0,68424.0,0.073099]
[1729501882448,0.3608,68425.0,68424.0,0.29373793]
[1729501882848,0.27401715,68425.0,68424.0,0.29373793]
[1729501883455,0.073088,68434.0,68424.0,0.2790697]
[1729501883750,0.073088,68434.0,68429.0,0.04358406]
[1729501883940,0.073088,68434.0,68428.0,0.04358406]
[1729501884351,0.07309,68433.0,68431.0,0.073091]
[1729501884743,0.3608,68438.0,68432.0,0.21971901]
[1729501884945,0.3608,68450.0,68437.0,0.04358406]
[1729501885152,0.3608,68450.0,68436.0,0.3608]
[1729501885153,0.073074,68447.0,68443.0,0.073079]
[1729501885352,0.073074,68447.0,68444.0,0.04359427]
[1729501885841,0.073076,68445.0,68443.0,0.073079]
[1729501886245,0.433872,68450.0,68446.0,0.073075]
[1729501886541,0.073072,68449.0,68447.0,0.33506038]
[1729501886950,0.073072,68449.0,68447.0,0.11667459]
[1729501887146,0.073072,68449.0,68448.0,0.26198638]
[1729501887447,0.073072,68449.0,68448.0,0.21838579]
[1729501889052,0.075072,68449.0,68448.0,0.22838579]
[1729501889850,0.20713728,68449.0,68438.0,0.34706]
[1729501890049,0.075072,68449.0,68448.0,0.22769169]
[1729501890248,0.20813728,68449.0,68448.0,0.22769169]
[1729501890452,0.13506528,68449.0,68448.0,0.083073]
[1729501890649,0.36172,68464.0,68456.0,0.073065]
[1729501890951,0.36172,68464.0,68457.0,0.44210484]
[1729501890952,0.073062,68459.0,68457.0,0.44210484]
[1729501891642,0.073062,68459.0,68457.0,0.51516784]
[1729501892561,0.074062,68459.0,68457.0,0.51516784]
[1729501893250,0.074062,68459.0,68457.0,0.44210484]
[1729501893251,0.073063,68458.0,68457.0,0.44210484]
[1729501893657,0.073063,68458.0,68457.0,0.46873974]
[1729501894059,0.073063,68458.0,68457.0,0.35813974]
[1729501894657,0.073063,68458.0,68457.0,0.24643974]
[1729501894873,0.073063,68458.0,68457.0,0.0266349]
[1729501895058,0.074063,68458.0,68457.0,0.001]
[1729501895665,0.1189172,68458.0,68457.0,0.001]
[1729501895854,0.1189172,68458.0,68457.0,0.00081646]
[1729501896056,0.1199172,68458.0,68457.0,0.00281646]
[1729501896748,0.4807172,68458.0,68457.0,0.00281646]
[1729501897868,0.435863,68458.0,68457.0,0.00281646]
[1729501901751,0.434863,68458.0,68457.0,0.002]
[1729501902154,0.07307,68451.0,68450.0,0.02582488]
[1729501902359,0.073074,68447.0,68446.0,0.073075]
[1729501903859,0.07308,68442.0,68441.0,0.20216641]
[1729501904061,0.07308,68442.0,68441.0,0.07527236]
[1729501904263,0.07308,68442.0,68441.0,0.29494275]
[1729501904457,0.1058,68456.0,68441.0,0.22186175]
[1729501904768,0.073077,68444.0,68443.0,0.073078]
[1729501904959,0.07308,68442.0,68441.0,0.00219136]
[1729501905154,0.073082,68440.0,68439.0,0.38785838]
[1729501905354,0.073082,68440.0,68439.0,0.02629838]
[1729501905551,0.073083,68439.0,68438.0,0.1072]
[1729501906557,0.073085,68437.0,68435.0,0.073087]
[1729501907066,0.073085,68437.0,68436.0,0.22024288]
[1729501908159,0.073086,68436.0,68435.0,0.02662014]
[1729501908360,0.001,68439.0,68433.0,0.36156]
[1729501908667,0.073088,68434.0,68433.0,0.3608]
[1729501908859,0.3608,68437.0,68429.0,0.10088]
[1729501909061,0.073092,68430.0,68429.0,0.12727899]
[1729501909460,0.073092,68430.0,68429.0,0.34707509]
[1729501909864,0.073092,68430.0,68429.0,0.42016909]
[1729501910263,0.074092,68430.0,68429.0,0.42016909]
[1729501910466,0.075092,68430.0,68429.0,0.42216909]
[1729501910858,0.002,68430.0,68429.0,0.42216909]
[1729501911365,0.002,68430.0,68429.0,0.32128909]
[1729501912059,0.3608,68445.0,68429.0,0.42798909]
[1729501912266,0.073083,68440.0,68434.0,0.3608]
[1729501912658,0.073083,68440.0,68435.0,0.21801733]
[1729501912879,0.08065633,68439.0,68435.0,0.13020296]
[1729501913166,0.08065633,68438.0,68436.0,0.073086]
[1729501913361,0.08065633,68437.0,68436.0,0.073086]
[1729501914563,0.15374133,68437.0,68436.0,0.29369491]
[1729501914771,0.15474133,68437.0,68436.0,0.29569491]
[1729501916167,0.15574133,68437.0,68436.0,0.29769491]
[1729501916765,0.15474133,68437.0,68436.0,0.29769491]
[1729501916961,0.15574133,68437.0,68436.0,0.29969491]
[1729501917667,0.15474133,68437.0,68436.0,0.29569491]
[1729501917868,0.15474133,68437.0,68436.0,0.29969491]
[1729501917869,0.15574133,68437.0,68436.0,0.29969491]
[1729501918367,0.08265633,68437.0,68436.0,0.29969491]
[1729501918868,0.08265633,68437.0,68436.0,0.29869491]
[1729501919176,0.08265633,68437.0,68436.0,0.30270368]
[1729501919871,0.002,68437.0,68436.0,0.32914963]
[1729501920366,0.001,68437.0,68436.0,0.32514963]
[1729501920566,0.001,68437.0,68436.0,0.32714963]
[1729501920760,0.002,68437.0,68436.0,0.32814963]
[1729501921372,0.3608,68446.0,68436.0,0.32514963]
[1729501921569,0.433876,68446.0,68437.0,0.3608]
[1729501921966,0.433876,68446.0,68445.0,0.073076]
[1729501921967,0.3608,68446.0,68445.0,0.073076]
[1729501922270,0.3608,68446.0,68445.0,0.29532504]
[1729501922472,0.073073,68449.0,68445.0,0.22224904]
[1729501922673,0.073073,68449.0,68448.0,0.073073]
[1729501922879,0.3608,68460.0,68450.0,0.073071]
[1729501923079,0.06905723,68455.0,68453.0,0.073068]
[1729501923375,0.3608,68460.0,68454.0,0.2916846]
[1729501923568,0.073063,68458.0,68454.0,0.2916846]
[1729501923766,0.3608,68460.0,68454.0,0.2916846]
[1729501923767,0.3608,68460.0,68454.0,0.073067]
[1729501924075,0.073065,68456.0,68455.0,0.2186176]
[1729501924276,0.073065,68456.0,68455.0,0.2916836]
[1729501924474,0.073065,68456.0,68455.0,0.073066]
[1729501924669,0.073065,68456.0,68455.0,0.21915224]
[1729501924974,0.073065,68456.0,68454.0,0.073067]
[1729501925480,0.073065,68456.0,68455.0,0.21981857]
[1729501926672,0.073068,68457.0,68455.0,0.29288957]
[1729501927578,0.002,68456.0,68455.0,0.29588957]
[1729501927972,0.19501276,68456.0,68455.0,0.07655471]
[1729501928170,0.42540226,68456.0,68455.0,0.07655471]
[1729501928474,0.42440226,68456.0,68455.0,0.07655471]
[1729501928775,0.49747326,68456.0,68455.0,0.00748371]
[1729501928971,0.19301276,68456.0,68446.0,0.44476402]
[1729501929171,0.073082,68447.0,68445.0,0.174483]
[1729501929376,0.19301276,68446.0,68444.0,0.1014]
[1729501929677,0.19301276,68445.0,68444.0,0.32021891]
[1729501929870,0.19301276,68445.0,68444.0,0.1014]
[1729501930179,0.26609676,68445.0,68444.0,0.24569028]
[1729501930374,0.26609676,68445.0,68444.0,0.02687137]
[1729501930676,0.26609676,68445.0,68439.0,0.1014]
[1729501930677,0.13304579,68445.0,68432.0,0.113]
[1729501930878,0.26206204,68440.0,68434.0,0.073096]
[1729501931076,0.31573579,68439.0,68438.0,0.21917969]
[1729501931270,0.31573579,68439.0,68435.0,0.21917969]
[1729501931581,0.31573579,68439.0,68434.0,0.073096]
[1729501931582,0.13304579,68438.0,68434.0,0.073096]
[1729501931879,0.19301276,68437.0,68435.0,0.21940253]
[1729501932072,0.1096,68439.0,68435.0,0.21940253]
[1729501932073,0.13304579,68436.0,68435.0,0.21940253]
[1729501932469,0.19301276,68436.0,68434.0,0.073096]
[1729501932677,0.19303873,68435.0,68434.0,0.073096]
[1729501932878,0.19303873,68435.0,68431.0,0.02684892]
[1729501932879,0.49387176,68435.0,68431.0,0.02684892]
[1729501933070,0.30723873,68434.0,68430.0,0.0731]
[1729501933270,0.08066207,68433.0,68432.0,0.21926599]
[1729501933470,0.08066207,68433.0,68430.0,0.0731]
[1729501933471,0.08066207,68433.0,68431.0,0.21968457]
[1729501933673,0.08066207,68432.0,68431.0,0.073099]
[1729501934979,0.07762883,68434.0,68431.0,0.18449479]
[1729501935180,0.07762883,68434.0,68433.0,0.07290689]
[1729501935393,0.07762883,68434.0,68432.0,0.07290689]
[1729501935679,0.07762883,68434.0,68430.0,0.02675414]
[1729501935680,0.07762883,68434.0,68433.0,0.14600389]
[1729501936776,0.07762883,68434.0,68433.0,0.073097]
[1729501936975,0.07762883,68434.0,68433.0,0.18449253]
[1729501937176,0.07862883,68434.0,68433.0,0.18449253]
[1729501937375,0.07862883,68434.0,68433.0,0.11139553]
[1729501937584,0.07862883,68434.0,68433.0,0.18428364]
[1729501937783,0.07762883,68434.0,68433.0,0.18428364]
[1729501938086,0.07862883,68434.0,68433.0,0.18428364]
[1729501938387,0.07862883,68434.0,68433.0,0.07288799]
[1729501938586,0.001,68434.0,68433.0,0.14598499]
[1729501938774,0.002,68434.0,68433.0,0.2573806]
[1729501939286,0.1096,68439.0,68433.0,0.2573806]
[1729501939287,0.1096,68439.0,68434.0,0.073095]
[1729501939585,0.1096,68439.0,68437.0,0.0583043]
[1729501940783,0.1106,68439.0,68437.0,0.0583043]
[1729501940977,0.3608,68438.0,68437.0,0.0583043]
[1729501941179,0.3608,68438.0,68437.0,0.08510633]
[1729501942585,0.3608,68438.0,68437.0,0.08610633]
[1729501942985,0.3608,68438.0,68437.0,0.02780203]
[1729501943181,0.3608,68438.0,68437.0,0.10089403]
[1729501943575,0.3608,68438.0,68437.0,0.09989403]
[1729501943792,0.3618,68438.0,68437.0,0.10189403]
[1729501943977,0.3628,68438.0,68437.0,0.10189403]
[1729501944686,0.3618,68438.0,68437.0,0.10189403]
[1729501944883,0.3628,68438.0,68437.0,0.10189403]
[1729501946684,0.3628,68438.0,68437.0,0.10089403]
[1729501947281,0.3618,68438.0,68437.0,0.09989403]
[1729501947481,0.3628,68438.0,68437.0,0.10089403]
[1729501949479,0.3618,68438.0,68437.0,0.10089403]
[1729501949789,0.3628,68438.0,68437.0,0.10089403]
[1729501949989,0.44346018,68438.0,68437.0,0.08539236]
[1729501950284,0.49488553,68438.0,68437.0,0.08439236]
[1729501950491,0.49588553,68438.0,68437.0,0.08539236]
[1729501951490,0.49488553,68438.0,68437.0,0.08439236]
[1729501951692,0.49588553,68438.0,68437.0,0.08539236]
[1729501953892,0.56897653,68438.0,68437.0,0.01230036]
[1729501955197,0.49588553,68438.0,68437.0,0.08539236]
[1729501955896,0.49488553,68438.0,68437.0,0.08539236]
[1729501956096,0.49588553,68438.0,68437.0,0.08539236]
[1729501956394,0.49588817,68438.0,68437.0,0.08539236]
[1729501957086,0.49488817,68438.0,68437.0,0.08439236]
[1729501957281,0.49588817,68438.0,68437.0,0.08539236]
[1729501957487,0.41522535,68438.0,68437.0,0.08539236]
[1729501957796,0.44346284,68438.0,68437.0,0.08539236]
[1729501957999,0.3628,68438.0,68437.0,0.14369666]
[1729501958193,0.3628,68438.0,68437.0,0.08539236]
[1729501958990,0.3618,68438.0,68437.0,0.08439236]
[1729501959196,0.3628,68438.0,68437.0,0.08539236]
[1729501960890,0.3628,68438.0,68437.0,0.08439236]
[1729501961097,0.3628,68438.0,68437.0,0.08539236]
[1729501961297,0.3618,68438.0,68437.0,0.08539236]
[1729501961498,0.3628,68438.0,68437.0,0.08539236]
[1729501961695,0.002,68438.0,68437.0,0.19677612]
[1729501961900,0.4645,68447.0,68437.0,0.19577612]
[1729501962096,0.3608,68447.0,68446.0,0.073083]
[1729501962998,0.3608,68447.0,68446.0,0.14617271]
[1729501963193,0.3608,68447.0,68446.0,0.073083]
[1729501964591,0.3618,68447.0,68446.0,0.074083]
[1729501965094,0.44245035,68447.0,68446.0,0.074083]
[1729501965295,0.49486931,68447.0,68446.0,0.074083]
[1729501965490,0.49586931,68447.0,68446.0,0.076083]
[1729501965891,0.49586931,68447.0,68440.0,0.30506332]
[1729501966097,0.13306931,68446.0,68440.0,0.30506332]
[1729501966399,0.05241896,68446.0,68445.0,0.073084]
[1729501966695,0.0806488,68446.0,68445.0,0.073084]
[1729501966894,0.13306776,68446.0,68445.0,0.073084]
[1729501967498,0.13306777,68446.0,68445.0,0.073084]
[1729501967694,0.13406777,68446.0,68445.0,0.073084]
[1729501968000,0.13506777,68446.0,68445.0,0.074084]
[1729501968785,0.13506777,68446.0,68445.0,0.10094738]
[1729501969403,0.13506777,68446.0,68445.0,0.32133378]
[1729501972404,0.135069,68446.0,68445.0,0.32133378]
[1729501972998,0.002,68446.0,68445.0,0.32133378]
[1729501980109,0.002,68446.0,68445.0,0.24759242]
[1729501980110,0.08264996,68446.0,68445.0,0.24759242]
[1729501980307,0.13506867,68446.0,68445.0,0.24759242]
[1729501980608,0.13506867,68446.0,68445.0,0.32067642]
[1729501981106,0.05441871,68446.0,68445.0,0.32067642]
[1729501981410,0.08264996,68446.0,68445.0,0.02720602]
[1729501981597,0.24876867,68446.0,68445.0,0.02720602]
[1729501982104,0.32185167,68446.0,68445.0,0.02720602]
[1729501985812,0.32185362,68446.0,68445.0,0.02720602]
[1729501988209,0.188783,68446.0,68445.0,0.02720602]
[1729501989314,0.188783,68446.0,68445.0,0.07102418]
[1729501990018,0.188783,68446.0,68445.0,0.02720602]
[1729501990209,0.188783,68446.0,68445.0,0.07102418]
[1729501991106,0.188783,68446.0,68445.0,0.02720602]
[1729501991615,0.188783,68446.0,68445.0,0.07105308]
[1729501991809,0.188783,68446.0,68445.0,0.14413708]
[1729501992115,0.1157,68446.0,68445.0,0.10029002]
[1729501994009,0.4765,68446.0,68445.0,0.10029002]
[1729501996212,0.4765,68446.0,68445.0,0.02720602]
[1729501996416,0.549583,68446.0,68445.0,0.02720602]
[1729501998025,0.549583,68446.0,68445.0,0.02620602]
[1729501998322,0.549583,68446.0,68445.0,0.02586338]
[1729501998524,0.4765,68446.0,68439.0,0.073089]
[1729501998722,0.3608,68440.0,68439.0,0.073089]
[1729502000225,0.3618,68440.0,68439.0,0.09985384]
[1729502001116,0.434889,68440.0,68439.0,0.02676484]
[1729502001312,0.073092,68438.0,68431.0,0.04604001]
[1729502001517,0.3618,68440.0,68434.0,0.073095]
[1729502001925,0.435889,68440.0,68434.0,0.073095]
[1729502002616,0.434889,68440.0,68431.0,0.00219166]
[1729502002817,0.434889,68440.0,68439.0,0.07309]
[1729502002818,0.002,68440.0,68439.0,0.07309]
[1729502003015,0.04686191,68440.0,68439.0,0.07309]
[1729502003222,0.08265316,68440.0,68439.0,0.21982879]
[1729502003422,0.08165316,68440.0,68439.0,0.22714021]
[1729502003726,0.08265316,68440.0,68439.0,0.08040142]
[1729502003926,0.08265316,68440.0,68439.0,0.29817815]
[1729502004428,0.08165316,68440.0,68439.0,0.29817815]
[1729502004623,0.08265316,68440.0,68439.0,0.29817815]
[1729502005328,0.08065316,68440.0,68439.0,0.29817815]
[1729502005529,0.08265105,68440.0,68439.0,0.29817815]
[1729502006118,0.05170105,68440.0,68439.0,0.29817815]
[1729502008629,0.04555689,68440.0,68439.0,0.29817815]
[1729502009236,0.0297469,68440.0,68439.0,0.29817815]
[1729502010140,0.001,68440.0,68439.0,0.32422362]
[1729502011527,0.001,68440.0,68439.0,0.36804985]
[1729502011835,0.001,68440.0,68439.0,0.32422362]
[1729502012734,0.001,68440.0,68439.0,0.36804985]
[1729502014542,0.001,68440.0,68439.0,0.32422362]
[1729502016033,0.001,68440.0,68439.0,0.36804714]
[1729502016538,0.001,68440.0,68439.0,0.36804637]
[1729502017033,0.001,68440.0,68439.0,0.32422362]
[1729502017831,0.001,68440.0,68439.0,0.36804539]
[1729502018033,0.08165038,68440.0,68439.0,0.32422362]
[1729502019132,0.05773542,68440.0,68439.0,0.32422362]
[1729502022744,0.02644542,68440.0,68439.0,0.32422362]
[1729502023946,0.15271897,68450.0,68447.0,0.073081]
[1729502024146,0.15271897,68450.0,68448.0,0.073081]
[1729502024446,0.15271897,68450.0,68449.0,0.07308]
[1729502024747,0.15271897,68450.0,68449.0,0.29130858]
[1729502025142,0.1003,68450.0,68449.0,0.29130858]
[1729502025347,0.1013,68450.0,68449.0,0.29130858]
[1729502025545,0.1013,68450.0,68449.0,0.21822858]
[1729502025946,0.1013,68450.0,68448.0,0.21898244]
[1729502026147,0.1023,68450.0,68449.0,0.21998244]
[1729502026550,0.1023,68450.0,68449.0,0.001]
[1729502026738,0.174379,68450.0,68449.0,0.22147333]
[1729502026938,0.175379,68450.0,68449.0,0.22247333]
[1729502028243,0.175379,68450.0,68449.0,0.24903952]
[1729502028447,0.174379,68450.0,68449.0,0.24803952]
[1729502028648,0.175379,68450.0,68449.0,0.24803952]
[1729502029341,0.174379,68450.0,68449.0,0.24803952]
[1729502029536,0.175379,68450.0,68449.0,0.24903952]
[1729502031148,0.175379,68450.0,68449.0,0.02856619]
[1729502033142,0.21116865,68450.0,68449.0,0.02856619]
[1729502033343,0.175379,68450.0,68449.0,0.02856619]
[1729502034440,0.072909,68458.0,68449.0,0.02856619]
[1729502034742,0.03578965,68457.0,68449.0,0.38936619]
[1729502034943,0.03578965,68456.0,68449.0,0.38936619]
[1729502035141,0.03578965,68455.0,68449.0,0.38936619]
[1729502035343,0.073079,68450.0,68449.0,0.38936619]
[1729502035744,0.073079,68450.0,68449.0,0.38836619]
[1729502036248,0.073079,68450.0,68449.0,0.38736619]
[1729502036443,0.10886865,68450.0,68449.0,0.38736619]
[1729502036847,0.10986865,68450.0,68449.0,0.38836619]
[1729502037049,0.11086865,68450.0,68449.0,0.39036619]
[1729502040040,0.075079,68450.0,68449.0,0.39036619]
[1729502047858,0.002,68450.0,68449.0,0.39036619]
[1729502048051,0.002,68450.0,68449.0,0.46344619]
[1729502048649,0.0021915,68468.0,68462.0,0.073065]
[1729502048958,0.0021915,68468.0,68467.0,0.3608]
[1729502049151,0.0021915,68468.0,68467.0,0.40466091]
[1729502049352,0.0021915,68468.0,68467.0,0.3608]
[1729502049548,0.0021915,68468.0,68467.0,0.43386]
[1729502049948,0.0141915,68468.0,68467.0,0.43386]
[1729502050555,0.0261915,68468.0,68467.0,0.43386]
[1729502051944,0.0231915,68468.0,68467.0,0.43386]
[1729502053154,0.0962505,68468.0,68467.0,0.43386]
[1729502053358,0.0842505,68468.0,68467.0,0.43386]
[1729502053551,0.0932505,68468.0,68467.0,0.43386]
[1729502054757,0.0932505,68468.0,68467.0,0.46013714]
[1729502055150,0.17388242,68468.0,68467.0,0.20646095]
[1729502055752,0.2262894,68468.0,68467.0,0.20646095]
[1729502056149,0.17388242,68468.0,68467.0,0.20646095]
[1729502056646,0.17388242,68468.0,68467.0,0.18626095]
[1729502056849,0.17388242,68468.0,68467.0,0.09933714]
[1729502058364,0.17388242,68468.0,68467.0,0.02627714]
[1729502058559,0.1532304,68468.0,68461.0,0.3608]
[1729502058766,0.073065,68464.0,68463.0,0.073064]
[1729502058963,0.2061039,68464.0,68463.0,0.073064]
[1729502060567,0.39504305,68464.0,68463.0,0.073064]
[1729502060960,0.2121039,68464.0,68463.0,0.073064]
[1729502061267,0.40106198,68464.0,68463.0,0.073064]
[1729502061469,0.2171039,68464.0,68463.0,0.073064]
[1729502063070,0.073066,68462.0,68461.0,0.38652415]
[1729502064270,0.077066,68462.0,68461.0,0.38652415]
[1729502065065,0.080066,68462.0,68461.0,0.38652415]
[1729502066469,0.080066,68462.0,68461.0,0.45959115]
[1729502067669,0.080066,68462.0,68461.0,0.50341394]
[1729502069771,0.080066,68462.0,68461.0,0.45959115]
[1729502070276,0.2131113,68462.0,68461.0,0.09879115]
[1729502070767,0.2131113,68462.0,68461.0,0.02572415]
[1729502070965,0.2131113,68462.0,68457.0,0.3003]
[1729502070966,0.073067,68461.0,68458.0,0.07307]
[1729502071169,0.32208947,68460.0,68458.0,0.07307]
[1729502071467,0.1330453,68459.0,68458.0,0.29360772]
[1729502071671,0.0806358,68459.0,68458.0,0.29360772]
[1729502074771,0.0816358,68459.0,68458.0,0.29360772]
[1729502077772,0.1340453,68459.0,68458.0,0.29360772]
[1729502078272,0.001,68459.0,68458.0,0.29360772]
[1729502089480,0.001,68459.0,68458.0,0.65440772]
[1729502089673,0.001,68459.0,68458.0,0.29360772]
[1729502093280,0.03678275,68459.0,68458.0,0.29360772]
[1729502093476,0.081634,68459.0,68458.0,0.29360772]
[1729502100277,0.001,68459.0,68458.0,0.29360772]
[1729502102681,0.3608,68460.0,68459.0,0.073069]
[1729502102884,0.3608,68460.0,68459.0,0.25750503]
[1729502103189,0.3629915,68468.0,68459.0,0.40361543]
[1729502103371,0.3629915,68468.0,68466.0,0.05845887]
[1729502103575,0.3629915,68468.0,68466.0,0.1169037]
[1729502103775,0.0021915,68468.0,68467.0,0.2191794]
[1729502103975,0.0021915,68468.0,68467.0,0.2630221]
[1729502104389,0.0021915,68468.0,68467.0,0.2922394]
[1729502104588,0.0021915,68468.0,68467.0,0.3360821]
[1729502104890,0.0021915,68468.0,68467.0,0.20186699]
[1729502106282,0.0111915,68468.0,68467.0,0.20186699]
[1729502106582,0.0201915,68468.0,68467.0,0.20286699]
[1729502106788,0.0201915,68468.0,68467.0,0.2292039]
[1729502106983,0.0201915,68468.0,68467.0,0.2730435]
[1729502108285,0.0201915,68468.0,68467.0,0.2292039]
[1729502108489,0.10082331,68468.0,68467.0,0.2292039]
[1729502108684,0.15323022,68468.0,68467.0,0.2292039]
[1729502109895,0.15103872,68468.0,68467.0,0.17886425]